Workbook

Sheet Tabelle1
A1: $ | B1: local =1, regional =2, national = 3 | C1: store | D1: shop | E1: time frame | F1: PPC Ad Spend | G1: SEO-Link Building | H1: Social Media | I1: SEO | J1: Website Redesign Question | K1: SEO Infographics | L1: PPC | M1: Media Bying Ad Spend | N1: Coupon promotion | O1: Copywriting/Content Marketing | P1: Email | Q1: Google Analytics - Website Customer Analytics | R1: Website Call Tracking | S1: Shopping Feeds | T1: Media Buying & Retargeting | U1: Website Conversion Analyses | V1: Local SEO
A2: 300 | B2: 1 | E2: 3-9 | I2: 400 | W2: =SUM(F2:V2) -> 400
A3: 300 | B3: 1 | E3: 12 and more | I3: 400 | W3: =SUM(F3:V3) -> 400
A4: 300 | B4: 1 | D4: x | E4: 3-9 | I4: 400 | W4: =SUM(F4:V4) -> 400
A5: 300 | B5: 1 | D5: x | E5: 12 and more | I5: 400 | W5: =SUM(F5:V5) -> 400
A6: 300 | B6: 1 | C6: x | E6: 3-9 | V6: 225 | W6: =SUM(F6:V6) -> 225
A7: 300 | B7: 1 | C7: x | E7: 12 and more | V7: 225 | W7: =SUM(F7:V7) -> 225
A8: 300 | B8: 1 | C8: x | D8: x | E8: 3-9 | V8: 225 | W8: =SUM(F8:V8) -> 225
A9: 300 | B9: 1 | C9: x | D9: x | E9: 12 and more | V9: 225 | W9: =SUM(F9:V9) -> 225
A10: 300 | B10: 2 | E10: 3-9 | I10: 400 | W10: =SUM(F10:V10) -> 400
A11: 300 | B11: 2 | E11: 12 and more | I11: 400 | W11: =SUM(F11:V11) -> 400
A12: 300 | B12: 2 | D12: x | E12: 3-9 | I12: 400 | W12: =SUM(F12:V12) -> 400
A13: 300 | B13: 2 | D13: x | E13: 12 and more | I13: 400 | W13: =SUM(F13:V13) -> 400
A14: 300 | B14: 2 | C14: x | E14: 3-9 | V14: 325 | W14: =SUM(F14:V14) -> 325
A15: 300 | B15: 2 | C15: x | E15: 12 and more | V15: 325 | W15: =SUM(F15:V15) -> 325
A16: 300 | B16: 2 | C16: x | D16: x | E16: 3-9 | V16: 325 | W16: =SUM(F16:V16) -> 325
A17: 300 | B17: 2 | C17: x | D17: x | E17: 12 and more | V17: 325 | W17: =SUM(F17:V17) -> 325
A18: 300 | B18: 3 | E18: 12 and more | I18: 400 | W18: =SUM(F18:V18) -> 400
A19: 300 | B19: 3 | E19: 3-9 | I19: 400 | W19: =SUM(F19:V19) -> 400
A20: 300 | B20: 3 | D20: x | E20: 12 and more | I20: 400 | W20: =SUM(F20:V20) -> 400
A21: 300 | B21: 3 | D21: x | E21: 3-9 | I21: 400 | W21: =SUM(F21:V21) -> 400
A22: 300 | B22: 3 | C22: x | E22: 12 and more | I22: 400 | W22: =SUM(F22:V22) -> 400
A23: 300 | B23: 3 | C23: x | E23: 3-9 | I23: 400 | W23: =SUM(F23:V23) -> 400
A24: 300 | B24: 3 | C24: x | D24: x | E24: 12 and more | V24: 325 | W24: =SUM(F24:V24) -> 325
A25: 300 | B25: 3 | C25: x | D25: x | E25: 3-9 | V25: 325 | W25: =SUM(F25:V25) -> 325
A26: 500 | B26: 1 | I26: 400 | W26: =SUM(F26:V26) -> 400
A27: 500 | B27: 1 | I27: 400 | W27: =SUM(F27:V27) -> 400
A28: 500 | B28: 1 | D28: x | I28: 400 | W28: =SUM(F28:V28) -> 400
A29: 500 | B29: 1 | D29: x | I29: 400 | W29: =SUM(F29:V29) -> 400
A30: 500 | B30: 1 | C30: x | I30: 400 | V30: 225 | W30: =SUM(F30:V30) -> 625
A31: 500 | B31: 1 | C31: x | I31: 400 | V31: 225 | W31: =SUM(F31:V31) -> 625
A32: 500 | B32: 1 | C32: x | D32: x | I32: 400 | V32: 225 | W32: =SUM(F32:V32) -> 625
A33: 500 | B33: 1 | C33: x | D33: x | I33: 400 | V33: 225 | W33: =SUM(F33:V33) -> 625
A35: 500 | B35: 2 | I35: 400 | W35: =SUM(F35:V35) -> 400
A37: 500 | B37: 2 | D37: x | I37: 400 | W37: =SUM(F37:V37) -> 400
A39: 500 | B39: 2 | C39: x | I39: 400 | W39: =SUM(F39:V39) -> 400
A41: 500 | B41: 2 | C41: x | D41: x | I41: 400 | W41: =SUM(F41:V41) -> 400
A43: 500 | B43: 3 | I43: 400 | W43: =SUM(F43:V43) -> 400
A45: 500 | B45: 3 | D45: x | I45: 400 | W45: =SUM(F45:V45) -> 400
A47: 500 | B47: 3 | C47: x | I47: 400 | W47: =SUM(F47:V47) -> 400
A49: 500 | B49: 3 | C49: x | D49: x | I49: 400 | W49: =SUM(F49:V49) -> 400
A50: 800 | B50: 1 | I50: 600 | W50: =SUM(F50:V50) -> 600
A51: 800 | B51: 1 | D51: x | I51: 600 | W51: =SUM(F51:V51) -> 600
A52: 800 | B52: 1 | C52: x | I52: 400 | V52: 225 | W52: =SUM(F52:V52) -> 625
A53: 800 | B53: 1 | C53: x | D53: x | I53: 600 | V53: 226 | W53: =SUM(F53:V53) -> 826
A54: 800 | B54: 2 | I54: 600 | W54: =SUM(F54:V54) -> 600
A55: 800 | B55: 2 | D55: x | I55: 600 | W55: =SUM(F55:V55) -> 600
A56: 800 | B56: 2 | C56: x | I56: 400 | V56: 325 | W56: =SUM(F56:V56) -> 725
A57: 800 | B57: 2 | C57: x | D57: x | I57: 400 | V57: 325 | W57: =SUM(F57:V57) -> 725
A58: 800 | B58: 3 | I58: 600 | W58: =SUM(F58:V58) -> 600
A59: 800 | B59: 3 | D59: x | I59: 400 | W59: =SUM(F59:V59) -> 400
A60: 800 | B60: 3 | C60: x | I60: 400 | V60: 500 | W60: =SUM(F60:V60) -> 900
A61: 800 | B61: 3 | C61: x | D61: x | I61: 400 | V61: 500 | W61: =SUM(F61:V61) -> 900
A62: 1000 | B62: 1 | F62: 325 | I62: 400 | L62: 325 | W62: =SUM(F62:V62) -> 1050
A63: 1000 | B63: 1 | D63: x | F63: 325 | I63: 400 | L63: 325 | W63: =SUM(F63:V63) -> 1050
A64: 1000 | B64: 1 | C64: x | F64: 325 | I64: 400 | L64: 325 | W64: =SUM(F64:V64) -> 1050
A65: 1000 | B65: 1 | C65: x | D65: x | F65: 325 | I65: 400 | L65: 325 | W65: =SUM(F65:V65) -> 1050
A66: 1000 | B66: 2 | F66: 300 | I66: 400 | L66: 325 | W66: =SUM(F66:V66) -> 1025
A67: 1000 | B67: 2 | D67: x | F67: 300 | I67: 400 | L67: 325 | W67: =SUM(F67:V67) -> 1025
A68: 1000 | B68: 2 | C68: x | F68: 300 | I68: 400 | L68: 325 | V68: 325 | W68: =SUM(F68:V68) -> 1350
A69: 1000 | B69: 2 | C69: x | D69: x | I69: 600 | V69: 325 | W69: =SUM(F69:V69) -> 925
A70: 1000 | B70: 3 | I70: 1000 | W70: =SUM(F70:V70) -> 1000
A71: 1000 | B71: 3 | D71: x | F71: 300 | I71: 400 | L71: 325 | W71: =SUM(F71:V71) -> 1025
A72: 1000 | B72: 3 | C72: x | I72: 400 | V72: 500 | W72: =SUM(F72:V72) -> 900
A73: 1000 | B73: 3 | C73: x | D73: x | I73: 600 | V73: 500 | W73: =SUM(F73:V73) -> 1100
A74: 2000 | B74: 1 | W74: =SUM(F74:V74) -> 0
A75: 2000 | B75: 1 | D75: x | W75: =SUM(F75:V75) -> 0
A76: 2000 | B76: 1 | C76: x | W76: =SUM(F76:V76) -> 0
A77: 2000 | B77: 1 | C77: x | D77: x | W77: =SUM(F77:V77) -> 0
A78: 2000 | B78: 2 | W78: =SUM(F78:V78) -> 0
A79: 2000 | B79: 2 | D79: x | W79: =SUM(F79:V79) -> 0
A80: 2000 | B80: 2 | C80: x | W80: =SUM(F80:V80) -> 0
A81: 2000 | B81: 2 | C81: x | D81: x | W81: =SUM(F81:V81) -> 0
A82: 2000 | B82: 3 | W82: =SUM(F82:V82) -> 0
A83: 2000 | B83: 3 | D83: x | W83: =SUM(F83:V83) -> 0
A84: 2000 | B84: 3 | C84: x | W84: =SUM(F84:V84) -> 0
A85: 2000 | B85: 3 | C85: x | D85: x | W85: =SUM(F85:V85) -> 0
A86: 4000 | B86: 1 | W86: =SUM(F86:V86) -> 0
A87: 4000 | B87: 1 | D87: x | W87: =SUM(F87:V87) -> 0
A88: 4000 | B88: 1 | C88: x | W88: =SUM(F88:V88) -> 0
A89: 4000 | B89: 1 | C89: x | D89: x | W89: =SUM(F89:V89) -> 0
A90: 4000 | B90: 2 | W90: =SUM(F90:V90) -> 0
A91: 4000 | B91: 2 | D91: x | W91: =SUM(F91:V91) -> 0
A92: 4000 | B92: 2 | C92: x | W92: =SUM(F92:V92) -> 0
A93: 4000 | B93: 2 | C93: x | D93: x | W93: =SUM(F93:V93) -> 0
A94: 4000 | B94: 3 | W94: =SUM(F94:V94) -> 0
A95: 4000 | B95: 3 | D95: x | W95: =SUM(F95:V95) -> 0
A96: 4000 | B96: 3 | C96: x | W96: =SUM(F96:V96) -> 0
A97: 4000 | B97: 3 | C97: x | D97: x | W97: =SUM(F97:V97) -> 0
A98: 8000 | B98: 1 | W98: =SUM(F98:V98) -> 0
A99: 8000 | B99: 1 | D99: x | W99: =SUM(F99:V99) -> 0
A100: 8000 | B100: 1 | C100: x | W100: =SUM(F100:V100) -> 0
A101: 8000 | B101: 1 | C101: x | D101: x | W101: =SUM(F101:V101) -> 0
A102: 8000 | B102: 2 | W102: =SUM(F102:V102) -> 0
A103: 8000 | B103: 2 | D103: x | W103: =SUM(F103:V103) -> 0
A104: 8000 | B104: 2 | C104: x | W104: =SUM(F104:V104) -> 0
A105: 8000 | B105: 2 | C105: x | D105: x | W105: =SUM(F105:V105) -> 0
A106: 8000 | B106: 3 | W106: =SUM(F106:V106) -> 0
A107: 8000 | B107: 3 | D107: x | W107: =SUM(F107:V107) -> 0
A108: 8000 | B108: 3 | C108: x | W108: =SUM(F108:V108) -> 0
A109: 8000 | B109: 3 | C109: x | D109: x | W109: =SUM(F109:V109) -> 0
A110: 15000 | B110: 1 | W110: =SUM(F110:V110) -> 0
A111: 15000 | B111: 1 | D111: x | W111: =SUM(F111:V111) -> 0
A112: 15000 | B112: 1 | C112: x | W112: =SUM(F112:V112) -> 0
A113: 15000 | B113: 1 | C113: x | D113: x | W113: =SUM(F113:V113) -> 0
A114: 15000 | B114: 2 | W114: =SUM(F114:V114) -> 0
A115: 15000 | B115: 2 | D115: x | W115: =SUM(F115:V115) -> 0
A116: 15000 | B116: 2 | C116: x | W116: =SUM(F116:V116) -> 0
A117: 15000 | B117: 2 | C117: x | D117: x | W117: =SUM(F117:V117) -> 0
A118: 15000 | B118: 3 | W118: =SUM(F118:V118) -> 0
A119: 15000 | B119: 3 | D119: x | W119: =SUM(F119:V119) -> 0
A120: 15000 | B120: 3 | C120: x | W120: =SUM(F120:V120) -> 0
A121: 15000 | B121: 3 | C121: x | D121: x | W121: =SUM(F121:V121) -> 0
